[Event "HUN-chT Youth 2019"]
[Site "Budapest"]
[Date "2019.10.26"]
[Round "1.10"]
[White "Oros, Mikhailo"]
[Black "Kovacsy, Barnabas"]
[Result "1/2-1/2"]
[ECO "A38"]
[WhiteElo "1704"]
[BlackElo "2093"]
[Annotator "NA"]
[PlyCount "73"]
[EventDate "2019.10.26"]
[EventType "team-tourn"]
[EventCountry "HUN"]
[SourceTitle "playchess.com"]
[Source "ChessBase"]
[SourceQuality "1"]
[TimeControl "5400+30"]

1. Nf3 {[%emt 0:00:00]} Nf6 {[%emt 0:00:00]} 2. g3 {[%emt 0:00:00]} g6 {[%emt 0:00:00]} 3. Bg2 {[%emt 0:00:23]} Bg7 {[%emt 0:00:04]} 4. O-O {[%emt 0:00:50]} O-O {[%emt 0:00:04]} 5. c4 {[%emt 0:00:48]} c5 {[%emt 0:01:00]} 6. d3 {[%emt 0:01:31]} Nc6 {[%emt 0:00:31]} 7. Nc3 {[%emt 0:00:16]} d5 {[%emt 0:02:53]} 8. cxd5 {[%emt 0:04:09]} Nxd5 {[%emt 0:00:21]} 9. Bd2 {[%emt 0:02:09]} b6 {[%emt 0:05:33]} 10. Nxd5 {[%emt 0:06:23]} Qxd5 {[%emt 0:00:24]} 11. Ne5 {[%emt 0:02:12]} Qxe5 {[%emt 0:00:08]} 12. Bxc6 {[%emt 0:00:15]} Bh3 {[%emt 0:03:28]} 13. Bxa8 {[%emt 0:04:03]} Bxf1 {[%emt 0:00:53]} 14. Kxf1 {[%emt 0:03:46]} Rxa8 {[%emt 0:00:54]} 15. Bc3 {[%emt 0:01:26]} Qd5 {[%emt 0:00:19]} 16. Kg1 {[%emt 0:00:15]} Bxc3 {[%emt 0:08:17]} 17. bxc3 {[%emt 0:00:11]} Rd8 {[%emt 0:07:31]} 18. c4 {[%emt 0:02:20]} Qd4 {[%emt 0:01:14]} 19. Rb1 {[%emt 0:02:38]} h5 {[%emt 0:05:36]} 20. h4 {[%emt 0:04:48]} e5 {[%emt 0:05:10]} 21. Qc2 {[%emt 0:02:08]} Kg7 {[%emt 0:03:12]} 22. Qb2 {[%emt 0:04:45]} Qd6 {[%emt 0:03:16]} 23. Qa3 {[%emt 0:04:28]} Rd7 {[%emt 0:00:52]} 24. Qc3 {[%emt 0:01:27]} f6 {[%emt 0:04:00]} 25. a4 {[%emt 0:03:17]} g5 {[%emt 0:02:18]} 26. hxg5 {[%emt 0:02:35]} fxg5 {[%emt 0:01:47]} 27. Qd2 {[%emt 0:01:19]} Qf6 {[%emt 0:01:33]} 28. Qe3 {[%emt 0:03:12]} Rd4 {[%emt 0:02:36]} 29. a5 {[%emt 0:03:38]} Kg6 {[%emt 0:10:02]} 30. axb6 {[%emt 0:00:53]} axb6 {[%emt 0:00:24]} 31. Ra1 {[%emt 0:04:46]} h4 {[%emt 0:05:15]} 32. Ra8 {[%emt 0:04:15]} Qe6 {[%emt 0:13:51]} 33. Rh8 {[%emt 0:03:07]} Rg4 {[%emt 0:02:33]} 34. Qf3 {[%emt 0:02:02]} hxg3 {[%emt 0:06:19]} 35. fxg3 {[%emt 0:00:26]} Qd7 {[%emt 0:01:58]} 36. Rg8+ {[%emt 0:02:13]} Kh7 {[%emt 0:00:45]} 37. Rf8 {[%emt 0:00:18]} 1/2-1/2

[Event "HUN-chT Youth 2019"]
[Site "Budapest"]
[Date "2019.10.26"]
[Round "1.11"]
[White "Koltai, Dora"]
[Black "Ferku, Donat"]
[Result "1-0"]
[ECO "B14"]
[WhiteElo "1845"]
[BlackElo "1410"]
[Annotator "NA"]
[PlyCount "77"]
[EventDate "2019.10.26"]
[EventType "team-tourn"]
[EventCountry "HUN"]
[SourceTitle "playchess.com"]
[Source "ChessBase"]
[SourceQuality "1"]
[TimeControl "5400+30"]

1. e4 {[%emt 0:00:00]} e6 {[%emt 0:00:00]} 2. d4 {[%emt 0:00:10]} d5 {[%emt 0:00:00]} 3. exd5 {[%emt 0:01:28]} exd5 {[%emt 0:00:00]} 4. c4 {[%emt 0:00:25]} c6 {[%emt 0:01:14]} 5. Nf3 {[%emt 0:02:36]} Nf6 {[%emt 0:00:45]} 6. Bd3 {[%emt 0:02:26]} Bb4+ {[%emt 0:01:09]} 7. Nc3 {[%emt 0:05:22]} O-O {[%emt 0:04:46]} 8. O-O {[%emt 0:03:24]} Bg4 {[%emt 0:04:28]} 9. cxd5 {[%emt 0:17:37]} cxd5 {[%emt 0:05:58]} 10. Bg5 {[%emt 0:03:37]} Bxc3 {[%emt 0:02:09]} 11. bxc3 {[%emt 0:00:16]} h6 {[%emt 0:01:11]} 12. Bh4 {[%emt 0:02:04]} Nc6 {[%emt 0:02:29]} 13. Bc2 {[%emt 0:08:06]} g5 {[%emt 0:02:08]} 14. Bg3 {[%emt 0:00:44]} Ne4 {[%emt 0:03:28]} 15. h3 {[%emt 0:26:34]} Bh5 {[%emt 0:00:43]} 16. Re1 {[%emt 0:04:17]} f5 {[%emt 0:00:24]} 17. Qd3 {[%emt 0:02:00]} Qd7 {[%emt 0:03:48]} 18. Ne5 {[%emt 0:02:59]} Nxe5 {[%emt 0:01:28]} 19. Bxe5 {[%emt 0:00:27]} Qc6 {[%emt 0:01:01]} 20. Bb3 {[%emt 0:02:52]} Nxc3 {[%emt 0:02:07]} 21. f3 {[%emt 0:01:54]} Nb5 {[%emt 0:00:47]} 22. Rac1 {[%emt 0:01:00]} Qb6 {[%emt 0:01:45]} 23. Bxd5+ {[%emt 0:00:49]} Kh7 {[%emt 0:01:11]} 24. a4 {[%emt 0:01:43]} Nd6 {[%emt 0:00:19]} 25. Rb1 {[%emt 0:02:48]} Qd8 {[%emt 0:00:58]} 26. Bxd6 {[%emt 0:01:45]} Qxd6 {[%emt 0:00:33]} 27. Rxb7+ {[%emt 0:01:13]} Kh8 {[%emt 0:00:58]} 28. Ree7 {[%emt 0:02:04]} Bf7 {[%emt 0:00:46]} 29. Bxf7 {[%emt 0:01:08]} Rab8 {[%emt 0:04:02]} 30. d5 {[%emt 0:01:49]} Qc5+ {[%emt 0:00:36]} 31. Kh2 {[%emt 0:00:31]} Qd6+ {[%emt 0:00:17]} 32. g3 {[%emt 0:00:40]} Qc5 {[%emt 0:00:49]} 33. Qe2 {[%emt 0:00:33]} Rxb7 {[%emt 0:02:27]} 34. Qe5+ {[%emt 0:00:22]} Kh7 {[%emt 0:00:19]} 35. Bg6+ {[%emt 0:00:28]} Kxg6 {[%emt 0:01:09]} 36. Qg7+ {[%emt 0:00:07]} Kh5 {[%emt 0:00:12]} 37. g4+ {[%emt 0:00:08]} fxg4 {[%emt 0:00:19]} 38. hxg4+ {[%emt 0:00:08]} Kh4 {[%emt 0:00:11]} 39. Qxh6# {[%emt 0:00:05]} 1-0

[Event "HUN-chT Youth 2019"]
[Site "Budapest"]
[Date "2019.10.26"]
[Round "1.12"]
[White "Papp, Regina"]
[Black "Matyassy, Lazar"]
[Result "0-1"]
[ECO "B34"]
[WhiteElo "1366"]
[BlackElo "1652"]
[Annotator "NA"]
[PlyCount "74"]
[EventDate "2019.10.26"]
[EventType "team-tourn"]
[EventCountry "HUN"]
[SourceTitle "playchess.com"]
[Source "ChessBase"]
[SourceQuality "1"]
[TimeControl "5400+30"]

1. e4 {[%emt 0:00:00]} c5 {[%emt 0:00:00]} 2. Nf3 {[%emt 0:00:00]} Nc6 {[%emt 0:00:00]} 3. Nc3 {[%emt 0:00:28]} g6 {[%emt 0:00:29]} 4. d4 {[%emt 0:01:10]} cxd4 {[%emt 0:03:24]} 5. Nxd4 {[%emt 0:01:04]} Bg7 {[%emt 0:00:06]} 6. Nb3 {[%emt 0:00:44]} Nf6 {[%emt 0:00:20]} 7. Be3 {[%emt 0:01:46]} d6 {[%emt 0:00:54]} 8. Qd2 {[%emt 0:02:37]} Ng4 {[%emt 0:01:27]} 9. Bf4 {[%emt 0:04:05]} Be6 {[%emt 0:03:17]} 10. f3 {[%emt 0:04:29]} Nf6 {[%emt 0:03:01]} 11. O-O-O {[%emt 0:04:54]} O-O {[%emt 0:06:02]} 12. Be2 {[%emt 0:03:35]} Rc8 {[%emt 0:03:55]} 13. Rhe1 {[%emt 0:05:53]} Bxb3 {[%emt 0:08:05]} 14. axb3 {[%emt 0:01:07]} Qa5 {[%emt 0:03:03]} 15. Na4 {[%emt 0:06:03]} Nb4 {[%emt 0:01:19]} 16. c3 {[%emt 0:18:06]} b5 {[%emt 0:02:27]} 17. Kb1 {[%emt 0:03:00]} Nc6 {[%emt 0:01:24]} 18. g4 {[%emt 0:03:08]} bxa4 {[%emt 0:04:41]} 19. bxa4 {[%emt 0:01:41]} Qxa4 {[%emt 0:02:50]} 20. h4 {[%emt 0:02:00]} Rb8 {[%emt 0:04:30]} 21. Qc2 {[%emt 0:22:31]} Rb3 {[%emt 0:02:30]} 22. Bc1 {[%emt 0:02:39]} Rfb8 {[%emt 0:01:13]} 23. Rd2 {[%emt 0:01:28]} Nd7 {[%emt 0:00:57]} 24. Rd3 {[%emt 0:01:21]} Nc5 {[%emt 0:00:17]} 25. Re3 {[%emt 0:00:44]} Qa5 {[%emt 0:01:30]} 26. Bc4 {[%emt 0:01:05]} Ra3 {[%emt 0:00:17]} 27. Qe2 {[%emt 0:03:47]} Bxc3 {[%emt 0:01:30]} 28. Bxf7+ {[%emt 0:02:44]} Kxf7 {[%emt 0:00:42]} 29. Qc4+ {[%emt 0:00:14]} e6 {[%emt 0:00:22]} 30. Rxc3 {[%emt 0:00:32]} Qxc3 {[%emt 0:00:23]} 31. Qxc3 {[%emt 0:00:20]} Rxc3 {[%emt 0:00:06]} 32. Rf1 {[%emt 0:00:21]} Nd3 {[%emt 0:00:20]} 33. h5 {[%emt 0:00:42]} Nxc1 {[%emt 0:00:08]} 34. Rxc1 {[%emt 0:00:07]} Rxc1+ {[%emt 0:00:05]} 35. Kxc1 {[%emt 0:00:07]} Ne5 {[%emt 0:00:05]} 36. hxg6+ {[%emt 0:00:18]} hxg6 {[%emt 0:00:05]} 37. f4 {[%emt 0:00:23]} Nd3+ {[%emt 0:00:05]} 0-1

[Event "HUN-chT Youth 2019"]
[Site "Budapest"]
[Date "2019.10.26"]
[Round "1.13"]
[White "Vodila, Martin Botond"]
[Black "Bohus, Adam"]
[Result "0-1"]
[ECO "C55"]
[WhiteElo "2114"]
[BlackElo "2229"]
[Annotator "ChessBase"]
[PlyCount "50"]
[EventDate "2019.10.26"]
[EventType "team-tourn"]
[EventCountry "HUN"]
[SourceTitle "playchess.com"]
[Source "ChessBase"]
[SourceQuality "1"]
[TimeControl "5400+30"]

1. e4 {[%emt 0:00:00]} e5 {[%emt 0:00:00]} 2. Nc3 {[%emt 0:00:24]} Nf6 {[%emt 0:00:01]} 3. Bc4 {[%emt 0:00:08]} Nc6 {[%emt 0:00:19]} 4. Nf3 {[%emt 0:00:10]} Nxe4 {[%emt 0:01:56]} 5. Nxe4 {[%emt 0:00:08]} d5 {[%emt 0:00:15]} 6. Bd3 {[%emt 0:00:01]} dxe4 {[%emt 0:02:53]} 7. Bxe4 {[%emt 0:00:05]} Bd6 {[%emt 0:14:43]} 8. O-O {[%emt 0:01:19]} O-O {[%emt 0:04:45]} 9. Re1 {[%emt 0:00:38]} Ne7 {[%emt 0:32:10]} 10. d4 {[%emt 0:02:10]} f5 {[%emt 0:03:17]} 11. dxe5 {[%emt 0:03:25]} Bb4 {[%emt 0:00:15]} 12. Bd3 {[%emt 0:08:48]} Bxe1 {[%emt 0:00:08]} 13. Qxe1 {[%emt 0:00:39]} Be6 {[%emt 0:05:02]} 14. Qb4 {[%emt 0:08:25]} Nc6 {[%emt 0:10:07]} 15. Qxb7 {[%emt 0:13:00]} Bd5 {[%emt 0:00:14]} 16. Qb5 {[%emt 0:06:25]} Rb8 {[%emt 0:03:04]} 17. Qc5 {[%emt 0:04:38]} Bxf3 {[%emt 0:00:08]} 18. gxf3 {[%emt 0:00:31]} Nd4 {[%emt 0:02:58]} 19. f4 {[%emt 0:09:54]} Nf3+ {[%emt 0:07:35]} 20. Kh1 {[%emt 0:14:13]} Kh8 {[%emt 0:00:37]} 21. Be2 {[%emt 0:00:35]} Nd4 {[%emt 0:03:22]} 22. Bd3 {[%emt 0:00:45]} Rb6 {[%emt 0:02:08]} 23. Be3 {[%emt 0:01:58]} Qa8+ {[%emt 0:00:53]} 24. Kg1 {[%emt 0:00:33]} Rg6+ {[%emt 0:00:06]} 25. Kf1 {[%emt 0:00:05]} Qh1# {[%emt 0:00:08]} 0-1

[Event "HUN-chT Youth 2019"]
[Site "Budapest"]
[Date "2019.10.26"]
[Round "1.14"]
[White "Pasztor, Balazs"]
[Black "Bako, Martin"]
[Result "1-0"]
[ECO "B01"]
[WhiteElo "2152"]
[BlackElo "1857"]
[Annotator "ChessBase"]
[PlyCount "145"]
[EventDate "2019.10.26"]
[EventType "team-tourn"]
[EventCountry "HUN"]
[SourceTitle "playchess.com"]
[Source "ChessBase"]
[SourceQuality "1"]
[TimeControl "5400+30"]

1. e4 {[%emt 0:00:00]} d5 {[%emt 0:00:02]} 2. exd5 {[%emt 0:00:00]} Qxd5 {[%emt 0:00:05]} 3. Nc3 {[%emt 0:00:00]} Qa5 {[%emt 0:00:11]} 4. d4 {[%emt 0:00:16]} c6 {[%emt 0:00:59]} 5. Nf3 {[%emt 0:01:05]} Nf6 {[%emt 0:00:45]} 6. Bc4 {[%emt 0:01:51]} Bf5 {[%emt 0:00:23]} 7. Bd2 {[%emt 0:01:29]} e6 {[%emt 0:00:27]} 8. Qe2 {[%emt 0:04:42]} Bb4 {[%emt 0:02:12]} 9. Ne5 {[%emt 0:05:58]} Nbd7 {[%emt 0:02:40]} 10. O-O-O {[%emt 0:05:23]} Nxe5 {[%emt 0:10:18]} 11. dxe5 {[%emt 0:02:17]} Nd5 {[%emt 0:01:52]} 12. Nxd5 {[%emt 0:05:58]} Bxd2+ {[%emt 0:06:23]} 13. Rxd2 {[%emt 0:01:58]} exd5 {[%emt 0:01:31]} 14. Bb3 {[%emt 0:02:54]} O-O-O {[%emt 0:01:29]} 15. Kb1 {[%emt 0:03:56]} Rhe8 {[%emt 0:04:16]} 16. f4 {[%emt 0:16:58]} f6 {[%emt 0:03:41]} 17. Re1 {[%emt 0:02:58]} fxe5 {[%emt 0:04:28]} 18. fxe5 {[%emt 0:02:52]} Qc7 {[%emt 0:00:41]} 19. a3 {[%emt 0:04:53]} Be4 {[%emt 0:02:18]} 20. Qg4+ {[%emt 0:01:54]} Kb8 {[%emt 0:01:52]} 21. e6 {[%emt 0:06:01]} Qe5 {[%emt 0:05:28]} 22. Rde2 {[%emt 0:04:33]} Qxh2 {[%emt 0:03:56]} 23. Rxe4 {[%emt 0:05:12]} dxe4 {[%emt 0:02:29]} 24. Qxg7 {[%emt 0:01:58]} Qc7 {[%emt 0:12:42]} 25. Qg4 {[%emt 0:01:54]} Re7 {[%emt 0:03:57]} 26. Qxe4 {[%emt 0:01:20]} Rg8 {[%emt 0:02:05]} 27. Rf1 {[%emt 0:01:49]} Rge8 {[%emt 0:05:36]} 28. g4 {[%emt 0:02:40]} Rg7 {[%emt 0:03:31]} 29. Rf5 {[%emt 0:03:21]} Qb6 {[%emt 0:04:29]} 30. Qf4+ {[%emt 0:01:50]} Qc7 {[%emt 0:00:55]} 31. Qf3 {[%emt 0:00:32]} Qd6 {[%emt 0:02:08]} 32. Rf7 {[%emt 0:02:11]} Rxf7 {[%emt 0:00:57]} 33. exf7 {[%emt 0:00:37]} Rd8 {[%emt 0:01:43]} 34. Ka2 {[%emt 0:00:48]} h6 {[%emt 0:00:38]} 35. Qf5 {[%emt 0:00:42]} Rf8 {[%emt 0:04:20]} 36. Be6 {[%emt 0:01:42]} Rh8 {[%emt 0:02:17]} 37. c3 {[%emt 0:01:25]} a6 {[%emt 0:01:13]} 38. c4 {[%emt 0:00:27]} Qd8 {[%emt 0:01:58]} 39. Qe5+ {[%emt 0:01:00]} Ka8 {[%emt 0:00:29]} 40. c5 {[%emt 0:01:11]} Qb8 {[%emt 0:00:56]} 41. Qf6 {[%emt 0:00:28]} Qd8 {[%emt 0:00:14]} 42. Qe5 {[%emt 0:00:57]} Qb8 {[%emt 0:00:09]} 43. Qg7 {[%emt 0:00:09]} Qd8 {[%emt 0:01:37]} 44. Qg6 {[%emt 0:01:10]} Qf8 {[%emt 0:00:14]} 45. Qf5 {[%emt 0:00:16]} Qd8 {[%emt 0:00:14]} 46. a4 {[%emt 0:00:47]} Rf8 {[%emt 0:00:32]} 47. Bb3 {[%emt 0:00:18]} Rh8 {[%emt 0:00:55]} 48. Qe6 {[%emt 0:00:27]} Qf8 {[%emt 0:00:56]} 49. Qe4 {[%emt 0:00:38]} Qd8 {[%emt 0:00:12]} 50. Qb4 {[%emt 0:00:19]} Rf8 {[%emt 0:00:47]} 51. Qf4 {[%emt 0:00:44]} Rh8 {[%emt 0:00:12]} 52. Ka3 {[%emt 0:00:21]} Qf8 {[%emt 0:00:29]} 53. Qe5 {[%emt 0:00:39]} Qd8 {[%emt 0:00:20]} 54. Bc4 {[%emt 0:00:23]} Qb8 {[%emt 0:00:42]} 55. Qc3 {[%emt 0:00:41]} Qd8 {[%emt 0:00:50]} 56. b4 {[%emt 0:00:28]} Rf8 {[%emt 0:00:35]} 57. Qe5 {[%emt 0:00:36]} Qb8 {[%emt 0:00:16]} 58. Qg7 {[%emt 0:00:29]} Rh8 {[%emt 0:00:26]} 59. Bb3 {[%emt 0:00:23]} Qf8 {[%emt 0:00:43]} 60. Qg6 {[%emt 0:00:31]} Qd8 {[%emt 0:00:12]} 61. a5 {[%emt 0:00:27]} Qf8 {[%emt 0:00:25]} 62. Qf5 {[%emt 0:00:35]} Qd8 {[%emt 0:00:10]} 63. Qe5 {[%emt 0:00:31]} Rf8 {[%emt 0:00:42]} 64. Bc4 {[%emt 0:00:32]} Rh8 {[%emt 0:00:23]} 65. Qd6 {[%emt 0:00:31]} Qb8 {[%emt 0:00:32]} 66. Kb3 {[%emt 0:00:09]} Qd8 {[%emt 0:00:12]} 67. Be6 {[%emt 0:00:24]} Qb8 {[%emt 0:00:15]} 68. Bd7 {[%emt 0:00:37]} Rf8 {[%emt 0:01:14]} 69. Qe7 {[%emt 0:00:49]} Qd8 {[%emt 0:00:48]} 70. Qxd8+ {[%emt 0:00:28]} Rxd8 {[%emt 0:00:06]} 71. Be8 {[%emt 0:00:08]} Rd3+ {[%emt 0:00:22]} 72. Kc4 {[%emt 0:00:06]} Rf3 {[%emt 0:00:30]} 73. Kd4 {[%emt 0:00:30]} 1-0

[Event "HUN-chT Youth 2019"]
[Site "Budapest"]
[Date "2019.10.26"]
[Round "1.15"]
[White "Bako, Milan"]
[Black "Dibusz, Domonkos"]
[Result "0-1"]
[ECO "C28"]
[WhiteElo "1605"]
[BlackElo "2088"]
[Annotator "NA"]
[PlyCount "86"]
[EventDate "2019.10.26"]
[EventType "team-tourn"]
[EventCountry "HUN"]
[SourceTitle "playchess.com"]
[Source "ChessBase"]
[SourceQuality "1"]
[TimeControl "5400+30"]

1. e4 {[%emt 0:00:00]} e5 {[%emt 0:00:00]} 2. Bc4 {[%emt 0:00:00]} Nf6 {[%emt 0:00:00]} 3. d3 {[%emt 0:00:00]} Nc6 {[%emt 0:00:10]} 4. Nc3 {[%emt 0:00:00]} Na5 {[%emt 0:00:10]} 5. Bb3 {[%emt 0:00:02]} Bb4 {[%emt 0:00:18]} 6. Bd2 {[%emt 0:00:54]} Nxb3 {[%emt 0:01:30]} 7. axb3 {[%emt 0:00:12]} O-O {[%emt 0:05:20]} 8. Nf3 {[%emt 0:02:29]} Re8 {[%emt 0:03:13]} 9. O-O {[%emt 0:00:59]} c6 {[%emt 0:02:34]} 10. Bg5 {[%emt 0:00:37]} h6 {[%emt 0:04:16]} 11. Bh4 {[%emt 0:00:22]} d6 {[%emt 0:01:46]} 12. Na2 {[%emt 0:04:17]} Ba5 {[%emt 0:00:32]} 13. c4 {[%emt 0:00:51]} Bg4 {[%emt 0:01:12]} 14. h3 {[%emt 0:00:59]} Bh5 {[%emt 0:00:11]} 15. Nc3 {[%emt 0:00:19]} Bc7 {[%emt 0:02:28]} 16. Re1 {[%emt 0:02:55]} Qe7 {[%emt 0:06:20]} 17. Qe2 {[%emt 0:25:41]} Qe6 {[%emt 0:03:51]} 18. Nd1 {[%emt 0:01:33]} a5 {[%emt 0:14:51]} 19. Ne3 {[%emt 0:02:32]} Rad8 {[%emt 0:01:37]} 20. Nf5 {[%emt 0:13:28]} Bg6 {[%emt 0:03:11]} 21. Bxf6 {[%emt 0:02:36]} Qxf6 {[%emt 0:00:28]} 22. N3h4 {[%emt 0:00:07]} d5 {[%emt 0:04:02]} 23. Nxg6 {[%emt 0:02:48]} Qxg6 {[%emt 0:00:28]} 24. Rad1 {[%emt 0:01:10]} Kh7 {[%emt 0:04:22]} 25. Qf3 {[%emt 0:01:26]} d4 {[%emt 0:06:48]} 26. Ng3 {[%emt 0:00:51]} Qe6 {[%emt 0:02:11]} 27. Qf5+ {[%emt 0:00:41]} g6 {[%emt 0:00:14]} 28. Qxe6 {[%emt 0:00:15]} Rxe6 {[%emt 0:00:03]} 29. Ra1 {[%emt 0:00:46]} c5 {[%emt 0:02:05]} 30. Ne2 {[%emt 0:01:53]} Rb8 {[%emt 0:02:19]} 31. Nc1 {[%emt 0:06:08]} Kg7 {[%emt 0:01:05]} 32. Kf1 {[%emt 0:00:28]} Rf8 {[%emt 0:03:52]} 33. f3 {[%emt 0:00:48]} Ra8 {[%emt 0:00:56]} 34. Re2 {[%emt 0:02:28]} Bd8 {[%emt 0:00:48]} 35. g3 {[%emt 0:01:00]} Bg5 {[%emt 0:00:38]} 36. Rc2 {[%emt 0:01:32]} f5 {[%emt 0:01:41]} 37. exf5 {[%emt 0:01:39]} gxf5 {[%emt 0:00:07]} 38. Ne2 {[%emt 0:00:24]} e4 {[%emt 0:00:41]} 39. fxe4 {[%emt 0:01:03]} fxe4 {[%emt 0:00:06]} 40. Nf4 {[%emt 0:00:31]} Bxf4 {[%emt 0:01:06]} 41. gxf4 {[%emt 0:00:11]} exd3 {[%emt 0:00:05]} 42. Rd2 {[%emt 0:00:08]} Re3 {[%emt 0:00:09]} 43. Re1 {[%emt 0:00:17]} Rae8 {[%emt 0:00:42]} 0-1

[Event "HUN-chT Youth 2019"]
[Site "Budapest"]
[Date "2019.10.26"]
[Round "1.16"]
[White "Kovacs, Gabor Etele"]
[Black "Szabo, Andrea Erzsebet"]
[Result "1-0"]
[ECO "B01"]
[WhiteElo "2053"]
[BlackElo "1583"]
[Annotator "NA"]
[PlyCount "76"]
[EventDate "2019.10.26"]
[EventType "team-tourn"]
[EventCountry "HUN"]
[SourceTitle "playchess.com"]
[Source "ChessBase"]
[SourceQuality "1"]
[TimeControl "5400+30"]

1. e4 {[%emt 0:00:00]} d5 {[%emt 0:00:02]} 2. exd5 {[%emt 0:00:00]} Qxd5 {[%emt 0:00:06]} 3. Nc3 {[%emt 0:00:00]} Qa5 {[%emt 0:00:17]} 4. d4 {[%emt 0:00:00]} Nf6 {[%emt 0:00:14]} 5. Nf3 {[%emt 0:00:33]} Bg4 {[%emt 0:03:31]} 6. h3 {[%emt 0:00:29]} Bxf3 {[%emt 0:04:25]} 7. Qxf3 {[%emt 0:00:03]} c6 {[%emt 0:01:32]} 8. Bc4 {[%emt 0:07:02]} e6 {[%emt 0:04:03]} 9. O-O {[%emt 0:04:30]} Bb4 {[%emt 0:15:34]} 10. Bd2 {[%emt 0:11:55]} O-O {[%emt 0:11:33]} 11. a3 {[%emt 0:01:14]} Bxc3 {[%emt 0:01:59]} 12. Bxc3 {[%emt 0:00:23]} Qd8 {[%emt 0:00:31]} 13. Rad1 {[%emt 0:05:21]} Nd5 {[%emt 0:03:23]} 14. Bd2 {[%emt 0:01:28]} Nd7 {[%emt 0:07:33]} 15. Bd3 {[%emt 0:02:10]} Qf6 {[%emt 0:07:39]} 16. Qg4 {[%emt 0:03:33]} g6 {[%emt 0:08:39]} 17. c4 {[%emt 0:03:51]} Nc7 {[%emt 0:03:33]} 18. Rfe1 {[%emt 0:06:44]} Qd8 {[%emt 0:09:05]} 19. Bc3 {[%emt 0:02:29]} Re8 {[%emt 0:04:53]} 20. Qf4 {[%emt 0:06:49]} Rc8 {[%emt 0:07:44]} 21. Qh6 {[%emt 0:01:32]} Qe7 {[%emt 0:02:46]} 22. Re3 {[%emt 0:05:44]} Qf8 {[%emt 0:00:40]} 23. Qf4 {[%emt 0:00:31]} Qe7 {[%emt 0:00:24]} 24. h4 {[%emt 0:00:05]} b5 {[%emt 0:00:55]} 25. b3 {[%emt 0:10:39]} Qf6 {[%emt 0:00:50]} 26. Qg4 {[%emt 0:00:22]} Qe7 {[%emt 0:00:28]} 27. Bc2 {[%emt 0:01:40]} Nf6 {[%emt 0:00:16]} 28. Qf4 {[%emt 0:00:01]} Nh5 {[%emt 0:00:24]} 29. Qh2 {[%emt 0:00:50]} Nf6 {[%emt 0:00:45]} 30. Rf3 {[%emt 0:00:41]} Nh5 {[%emt 0:00:35]} 31. g4 {[%emt 0:00:17]} Ng7 {[%emt 0:00:18]} 32. Qf4 {[%emt 0:01:10]} f5 {[%emt 0:00:34]} 33. gxf5 {[%emt 0:03:31]} Nxf5 {[%emt 0:00:35]} 34. Rh3 {[%emt 0:01:13]} Qd6 {[%emt 0:00:36]} 35. Qe4 {[%emt 0:00:44]} Ng7 {[%emt 0:00:33]} 36. h5 {[%emt 0:01:18]} Nf5 {[%emt 0:00:34]} 37. hxg6 {[%emt 0:00:26]} hxg6 {[%emt 0:00:19]} 38. Qg4 {[%emt 0:00:48]} Qd7 {[%emt 0:00:55]} 1-0

[Event "HUN-chT Youth 2019"]
[Site "Budapest"]
[Date "2019.10.26"]
[Round "1.17"]
[White "Flasko, Adam"]
[Black "Giang, Tran Nam"]
[Result "1/2-1/2"]
[ECO "B20"]
[WhiteElo "1520"]
[BlackElo "2028"]
[Annotator "NA"]
[PlyCount "109"]
[EventDate "2019.10.26"]
[EventType "team-tourn"]
[EventCountry "HUN"]
[SourceTitle "playchess.com"]
[Source "ChessBase"]
[SourceQuality "1"]
[TimeControl "5400+30"]

1. e4 {[%emt 0:00:00]} c5 {[%emt 0:00:00]} 2. Nc3 {[%emt 0:00:19]} e6 {[%emt 0:00:08]} 3. Bc4 {[%emt 0:01:23]} a6 {[%emt 0:00:24]} 4. a3 {[%emt 0:01:34]} b5 {[%emt 0:00:42]} 5. Ba2 {[%emt 0:01:32]} Bb7 {[%emt 0:00:30]} 6. d3 {[%emt 0:01:08]} Nf6 {[%emt 0:01:59]} 7. Nf3 {[%emt 0:03:55]} d5 {[%emt 0:04:48]} 8. exd5 {[%emt 0:02:18]} exd5 {[%emt 0:00:42]} 9. O-O {[%emt 0:05:02]} Be7 {[%emt 0:00:44]} 10. Bg5 {[%emt 0:07:06]} Nbd7 {[%emt 0:02:26]} 11. Re1 {[%emt 0:00:27]} O-O {[%emt 0:00:19]} 12. d4 {[%emt 0:09:18]} h6 {[%emt 0:03:04]} 13. Bh4 {[%emt 0:00:29]} c4 {[%emt 0:02:32]} 14. Ne2 {[%emt 0:01:36]} Re8 {[%emt 0:02:15]} 15. c3 {[%emt 0:00:32]} Qb6 {[%emt 0:04:22]} 16. Bxf6 {[%emt 0:03:49]} Nxf6 {[%emt 0:03:28]} 17. Ng3 {[%emt 0:03:33]} Bd6 {[%emt 0:00:47]} 18. Rxe8+ {[%emt 0:04:50]} Rxe8 {[%emt 0:00:16]} 19. Qd2 {[%emt 0:02:42]} Ne4 {[%emt 0:01:24]} 20. Qd1 {[%emt 0:02:33]} Bc8 {[%emt 0:06:04]} 21. Nd2 {[%emt 0:02:40]} Qc7 {[%emt 0:06:17]} 22. Ndxe4 {[%emt 0:02:08]} dxe4 {[%emt 0:03:07]} 23. Bb1 {[%emt 0:01:57]} e3 {[%emt 0:03:59]} 24. Qe1 {[%emt 0:03:06]} Bf4 {[%emt 0:07:20]} 25. fxe3 {[%emt 0:05:21]} Rxe3 {[%emt 0:02:21]} 26. Qf2 {[%emt 0:00:52]} Re6 {[%emt 0:00:50]} 27. Kh1 {[%emt 0:02:01]} Bxg3 {[%emt 0:01:14]} 28. hxg3 {[%emt 0:01:09]} Qe7 {[%emt 0:03:30]} 29. Bf5 {[%emt 0:02:23]} Rf6 {[%emt 0:01:55]} 30. Re1 {[%emt 0:03:40]} Qd8 {[%emt 0:01:25]} 31. g4 {[%emt 0:01:09]} g6 {[%emt 0:04:13]} 32. Qe3 {[%emt 0:00:34]} Bxf5 {[%emt 0:04:27]} 33. gxf5 {[%emt 0:00:35]} Rxf5 {[%emt 0:00:33]} 34. Qe8+ {[%emt 0:02:18]} Qxe8 {[%emt 0:00:41]} 35. Rxe8+ {[%emt 0:00:06]} Kg7 {[%emt 0:00:09]} 36. Kg1 {[%emt 0:00:17]} Rf6 {[%emt 0:03:05]} 37. Rc8 {[%emt 0:00:44]} h5 {[%emt 0:01:49]} 38. a4 {[%emt 0:00:44]} g5 {[%emt 0:02:32]} 39. axb5 {[%emt 0:00:18]} axb5 {[%emt 0:00:11]} 40. Rc5 {[%emt 0:00:11]} Kg6 {[%emt 0:00:50]} 41. Rxb5 {[%emt 0:00:12]} Rc6 {[%emt 0:00:40]} 42. b3 {[%emt 0:00:59]} cxb3 {[%emt 0:00:48]} 43. Rxb3 {[%emt 0:00:47]} f6 {[%emt 0:00:41]} 44. d5 {[%emt 0:02:40]} Rc5 {[%emt 0:00:28]} 45. d6 {[%emt 0:00:29]} Rd5 {[%emt 0:00:20]} 46. Rb6 {[%emt 0:00:18]} Kf7 {[%emt 0:01:13]} 47. c4 {[%emt 0:00:54]} Rd1+ {[%emt 0:00:29]} 48. Kh2 {[%emt 0:00:17]} Ke6 {[%emt 0:00:49]} 49. c5 {[%emt 0:01:44]} f5 {[%emt 0:02:57]} 50. Rb7 {[%emt 0:00:52]} Rd5 {[%emt 0:03:20]} 51. Re7+ {[%emt 0:00:35]} Kf6 {[%emt 0:00:06]} 52. Rc7 {[%emt 0:00:14]} Ke6 {[%emt 0:01:00]} 53. Re7+ {[%emt 0:00:11]} Kf6 {[%emt 0:00:08]} 54. Rc7 {[%emt 0:00:05]} Ke6 {[%emt 0:00:46]} 55. Re7+ {[%emt 0:00:30]} 1/2-1/2